[Event "41st BAN National Women Chess-ch 2022"]
[Site "Dhaka"]
[Date "2022.11.24"]
[Round "7.6"]
[White "Hamid, Rani"]
[Black "Ahmed, Walijah"]
[Result "1-0"]
[ECO "B59"]
[WhiteElo "1760"]
[BlackElo "1977"]
[Annotator "TA"]
[PlyCount "221"]
[EventDate "2022.11.17"]
[EventCountry "BAN"]
[SourceTitle "playchess.com"]
[Source "ChessBase"]
[SourceQuality "1"]
[TimeControl "40/5400+30:1800+30"]

{[%evp 23,220,-11,27,-13,0,-11,-16,0,0,-61,-52,-109,-53,-110,-97,-137,-137,-137,-133,-141,-140,-127,-116,-85,-80,-95,-78,-119,-89,-144,-163,-200,-201,-202,-208,-206,-202,-207,-145,-154,-129,-115,-109,-112,-120,-112,-99,-97,-34,-35,-38,-38,-38,-38,-42,-44,0,0,0,0,58,84,94,0,0,0,0,0,0,0,0,0,0,0,0,0,20,0,0,0,0,-8,114,100,591,575,545,298,298,250,343,347,347,325,520,520,481,340,342,335,323,321,406,400,370,383,376,363,566,555,529,489,677,641,829,829,821,804,816,814,793,787,662,726,590,598,532,506,443,416,779,728,8035,5518,29966,456,456,387,387,8,8,0,324,317,278,229,444,434,4894,3559,2585,2364,9383,1077,2749,1743,29971,29965,29983,29984,29987,29987,29988,29986,29990,29991,29992,29993,29994,29993,29996,29994,29994,29991,29993,29990,29992,29989,29991,29989,29991,29992,29992,29993,29993,29993,29994,29995,29997,29997,29997,29997,29997,29995,29997,29998,29998,29999,29999]} 1. e4 {[%emt 0:00:18]} c5 {[%emt 0:00:07]} 2. Nf3 {[%emt 0:00:40]} d6 {[%emt 0:00:10]} 3. d4 {[%emt 0:00:10]} cxd4 {[%emt 0:00:06]} 4. Nxd4 {[%emt 0:00:07]} Nf6 {[%emt 0:00:07]} 5. Nc3 {[%emt 0:00:08]} Nc6 {[%emt 0:00:06]} 6. Be2 {[%emt 0:00:28]} e5 {[%emt 0:00:18]} 7. Nb3 {[%emt 0:00:03]} Be7 {[%emt 0:00:16]} 8. Be3 {[%emt 0:00:38]} Be6 {[%emt 0:01:01]} 9. O-O {[%emt 0:00:24]} O-O {[%emt 0:00:19]} 10. Kh1 {[%emt 0:00:25]} a5 {[%emt 0:01:42]} 11. a4 {[%emt 0:01:26]} Nb4 {[%emt 0:02:12]} 12. f4 {[%emt 0:00:37]} Qc7 {[%emt 0:04:00]} 13. f5 {[%emt 0:02:34] B59: Classical Sicilian: 6 Be2 e5 7 Nb3.} Bc4 {[%emt 0:01:56] [#]} 14. Bxc4 $146 {[%emt 0:04:27]} ({Predecessor:} 14. Bg5 Rfd8 15. Nd2 Ba6 16. Rc1 d5 17. Qe1 Bxe2 18. Qxe2 d4 19. Nb5 Qc5 20. c3 d3 {½-½ (60) Budimir,B (2345)-Stojanovic,D (2464) Banja Vrucica 2009}) 14... Qxc4 {[%emt 0:00:07]} 15. Nd2 {[%emt 0:00:10] The position is equal.} Qc6 {[%emt 0:00:45]} 16. Rc1 {[%emt 0:01:31]} (16. Bg5 $11) 16... d5 $15 {[%emt 0:02:29]} 17. exd5 {[%emt 0:00:28]} (17. Bg5 $15) 17... Nbxd5 {[%emt 0:00:49]} (17... Nfxd5 18. Qf3 Nxc3 19. bxc3 Qxf3 20. Rxf3 Na2) (17... Nfxd5 $17 18. Qf3 Nxc3 19. bxc3 Nd5) 18. Nxd5 {[%emt 0:00:39]} (18. Qf3) ({White should try} 18. Qf3 $1 $15) 18... Nxd5 $17 {[%emt 0:00:20]} 19. Qf3 {[%emt 0:01:33]} Nxe3 $1 {[%emt 0:02:46]} 20. Qxe3 {[%emt 0:00:03]} Qxa4 {[%emt 0:02:13]} 21. Ne4 {[%emt 0:07:38]} f6 {[%emt 0:02:36]} 22. Rf3 {[%emt 0:05:54]} Rad8 {[%emt 0:09:49][%cal Ba8d8,Bd8d7,Bd7d4][%mdl 32]} (22... Rac8 23. Qe2 Qc4) 23. Qb3+ {[%emt 0:03:52]} Qxb3 {[%emt 0:00:16]} 24. Rxb3 {[%emt 0:00:02]} Rd7 {[%emt 0:01:07]} 25. Kg1 {[%emt 0:01:48]} Rb8 {[%emt 0:04:58]} 26. Ra1 {[%emt 0:02:55]} (26. Rb5 $142) 26... Rd4 {[%emt 0:02:42]} 27. Re1 {[%emt 0:00:59]} (27. Re3) 27... b5 {[%emt 0:03:14][%cal Bb7b5,Bb5b4][%mdl 32]} 28. Rf3 {[%emt 0:02:53]} b4 {[%emt 0:03:22]} 29. b3 {[%emt 0:01:30]} Rc8 {[%emt 0:02:42]} 30. Re2 {[%emt 0:02:15]} Bd8 {[%emt 0:02:27]} 31. g4 {[%emt 0:01:36]} Bb6 {[%emt 0:02:32]} (31... Ra8 32. c3 Rd1+ 33. Kg2 Bb6) 32. Kg2 {[%emt 0:00:18]} h6 {[%emt 0:13:20]} 33. h4 {[%emt 0:02:18]} Kf7 {[%emt 0:00:51]} 34. g5 {[%emt 0:00:50]} hxg5 {[%emt 0:00:18]} (34... Rc6 35. gxh6 gxh6) 35. hxg5 {[%emt 0:00:02]} Rh8 {[%emt 0:00:33]} (35... Ke7 36. Rg3 Rxe4 37. gxf6+ Kxf6 38. Rxe4 Rxc2+ 39. Kf1 Kxf5) (35... Ke7 $17 36. gxf6+ gxf6) 36. g6+ {[%emt 0:04:20]} Ke7 {[%emt 0:00:37] White must now prevent ...Rh4.} 37. Rh3 {[%emt 0:00:32] Prevents Rh4.} Rxh3 {[%emt 0:01:56]} 38. Kxh3 $15 {[%emt 0:00:02][%mdl 4096] Endgame KRB-KRN} Rd1 {[%emt 0:01:18]} 39. Ng3 $1 {[%emt 0:02:48] Against Rf1} Bd4 {[%emt 0:02:19]} 40. Kg4 {[%emt 0:00:38]} Rg1 {[%emt 0:03:17]} 41. Kf3 {[%emt 0:30:26]} Kf8 {[%emt 0:37:30]} (41... Kd6 $11) 42. Rh2 $14 {[%emt 0:01:36][%mdl 1024] Hoping for Rh8+. White has compensation.} Kg8 {[%emt 0:00:09] Inhibits Rh8+.} 43. Re2 {[%emt 0:01:03]} ({White should play} 43. Rh1 $1 $16) 43... Bc3 {[%emt 0:01:39]} 44. Kf2 {[%emt 0:02:58]} Rd1 {[%emt 0:01:18]} 45. Kf3 {[%emt 0:01:05]} Rd7 {[%emt 0:07:41]} 46. Ne4 {[%emt 0:01:04]} Bd4 {[%emt 0:00:54] Prevents Nc5.} 47. Nd2 {[%emt 0:01:18]} Rc7 {[%emt 0:00:57] aiming for ...Rc3+.} 48. Ne4 {[%emt 0:00:06] Against Rc3+} Rd7 {[%emt 0:06:51]} 49. Rd2 {[%emt 0:00:44]} Rc7 {[%emt 0:00:33] Against Nc5} 50. Ke2 {[%emt 0:02:32]} Kf8 {[%emt 0:00:48]} 51. Kd1 {[%emt 0:00:58]} Ke7 {[%emt 0:00:34]} 52. Rd3 {[%emt 0:01:26]} Kd7 {[%emt 0:02:01] [#]} (52... Rd7) (52... Rc8 $11 {remains equal.}) 53. Rh3 $1 $16 {[%emt 0:00:54]} Bc5 $2 {[%emt 0:00:00][%mdl 8192] [#]} (53... Ra7) (53... Ra7 $16 {is tougher.}) 54. Nxf6+ $1 $18 {[%emt 0:00:00][%mdl 576]} Kc6 {[%emt 0:00:00] [#]} 55. Rh7 $1 {[%emt 0:00:00]} Bf8 {[%emt 0:00:00]} (55... gxf6 56. Rxc7+ Kxc7 57. g7) (55... gxf6 $2 56. Rxc7+ Kxc7 57. g7 $18) 56. Ng4 {[%emt 0:00:00]} Kd5 {[%emt 0:00:00]} 57. f6 {[%emt 0:00:00]} Ke6 {[%emt 0:00:00] [#]} 58. Rh8 $1 {[%emt 0:00:00]} Bc5 {[%emt 0:00:00]} (58... Bd6 59. f7 Kf5 60. Ne3+ (60. f8=Q+ Bxf8 61. Ne3+ Ke4) 60... Kxg6) (58... Bd6 $142 59. f7 Kf5 60. Ne3+ (60. f8=Q+ Bxf8 61. Ne3+ Ke4 $11) 60... Kxg6) 59. f7 {[%emt 0:00:00] Strongly threatening Re8+.} Kf5 {[%emt 0:00:00] [#]} 60. Ne3+ {[%emt 0:00:00][%mdl 512]} Kxg6 {[%emt 0:00:00][%cal Oc7f7]} 61. f8=Q {[%emt 0:44:51]} ({Weaker is} 61. f8=R Bxe3 62. Rc8 Rf7 $14) 61... Bxf8 {[%emt 0:00:00]} 62. Rxf8 {[%emt 0:00:00] KRN-KR} a4 {[%emt 0:00:00]} 63. bxa4 {[%emt 0:00:00]} Ra7 {[%emt 0:00:00] Inhibits Ra8.} 64. Nc4 {[%emt 0:00:00]} Rxa4 {[%emt 0:00:00]} 65. Nxe5+ {[%emt 0:00:00]} Kh5 {[%emt 0:00:00]} (65... Kh6 {might work better.} 66. Rb8 g5) 66. Kc1 {[%emt 0:00:00]} Ra5 {[%emt 0:00:00]} 67. Nd3 {[%emt 0:00:00]} g5 {[%emt 0:00:00]} 68. Nxb4 {[%emt 0:00:00]} g4 {[%emt 0:00:00]} 69. Nd3 {[%emt 0:00:00]} g3 {[%emt 0:00:00]} 70. Kd2 {[%emt 0:00:00]} Kg4 {[%emt 0:12:32]} 71. Rg8+ {[%emt 0:00:00]} Kf3 {[%emt 0:00:00]} 72. Ne1+ {[%emt 0:00:00]} Kf2 {[%emt 0:00:00]} 73. Rf8+ {[%emt 0:00:00]} Kg1 {[%emt 0:00:00]} 74. Rf3 {[%emt 0:00:00]} Kh2 {[%emt 0:00:00]} 75. Re3 {[%emt 0:00:00]} Rd5+ {[%emt 0:00:00]} 76. Rd3 {[%emt 0:00:00]} Rf5 {[%emt 0:00:00]} (76... Rc5 $142 77. Nf3+ Kh1) 77. Nf3+ {[%emt 0:00:00]} Kh1 {[%emt 0:00:00]} 78. Ke3 {[%emt 0:00:00]} Rc5 {[%emt 0:00:00]} 79. Rd1+ {[%emt 0:00:00]} (79. Rd2 $142 Rc4 80. Ne1 Rg4 81. Ng2 Rg7 82. Kf3 Re7 83. Ne3 Rg7 84. Rd1+ Kh2 85. Ng4+ Rxg4 86. Kxg4) 79... Kg2 {[%emt 0:00:00]} 80. Rg1+ {[%emt 0:00:00]} Kh3 {[%emt 0:00:00]} 81. Rh1+ $2 {[%emt 0:00:00]} (81. Rc1 $18) 81... Kg2 $11 {[%emt 0:00:00]} 82. Rg1+ $2 {[%emt 0:00:00][%mdl 8192]} (82. Rd1 $11 Rc3+ 83. Rd3 Rxc2 84. Ng5 (84. Ne1+ Kh2 $11)) 82... Kh3 $18 {[%emt 0:00:00]} 83. Rc1 {[%emt 0:00:00]} Rc3+ {[%emt 0:00:00]} 84. Ke4 {[%emt 0:00:00]} Kg2 $2 {[%emt 0:00:00]} (84... g2 {was necessary.} 85. Ng1+ Kh2) 85. Ne1+ {[%emt 0:00:00]} (85. Nh4+ Kh2 86. Kd4) 85... Kh2 {[%emt 0:00:00]} (85... Kf2 86. Kd4 (86. Nd3+ Ke2) 86... Rc8) (85... Kf2 $142 86. Kd4 (86. Nd3+ Ke2 $14) 86... Rc7) 86. Kd4 {[%emt 0:00:00]} Rc8 {[%emt 0:00:04]} 87. c4 {[%emt 0:00:00] Threatening mate with c5.} Kg1 {[%emt 0:00:31]} 88. Nd3+ {[%emt 0:00:00]} Kg2 {[%emt 0:00:46]} 89. c5 {[%emt 0:00:00]} Kh2 {[%emt 0:00:47]} 90. Rc2+ {[%emt 0:00:00] White mates.} Kh1 {[%emt 0:01:34]} 91. Nf4 {[%emt 0:00:00]} Rf8 {[%emt 0:00:20]} 92. Ke4 {[%emt 0:00:00]} Rc8 {[%emt 0:00:47]} 93. c6 {[%emt 0:00:00]} Kg1 {[%emt 0:03:01]} 94. Kf3 {[%emt 0:00:00]} g2 {[%emt 0:02:30]} 95. Rxg2+ {[%emt 0:00:00]} Kh1 {[%emt 0:00:10]} 96. Rc2 {[%emt 0:00:00]} Kg1 {[%emt 0:00:15]} 97. c7 {[%emt 0:00:00]} Kh1 {[%emt 0:00:06]} 98. Ke4 {[%emt 0:00:00]} Kg1 {[%emt 0:00:11]} 99. Ke5 {[%emt 0:00:00]} Kh1 {[%emt 0:00:10]} 100. Kd6 {[%emt 0:00:00]} Rf8 {[%emt 0:00:28]} 101. Ne6 {[%emt 0:00:00]} Rg8 {[%emt 0:00:21]} 102. Nd8 {[%emt 0:00:00]} Rg6+ {[%emt 0:00:12]} 103. Ke5 {[%emt 0:00:00]} Rg5+ {[%emt 0:00:24]} 104. Kf6 {[%emt 0:00:00]} Rg4 {[%emt 0:00:08]} 105. c8=Q {[%emt 0:00:00]} Rg3 {[%emt 0:00:24]} 106. Qc6+ {[%emt 0:00:00]} Kg1 {[%emt 0:00:07]} 107. Qb6+ {[%emt 0:00:00]} Kh1 {[%emt 0:00:11]} 108. Rc1+ {[%emt 0:00:00]} Kh2 {[%emt 0:00:06]} 109. Qf2+ {[%emt 0:00:00]} Kh3 {[%emt 0:00:06]} 110. Rh1+ {[%emt 0:00:00]} Kg4 {[%emt 0:06:21]} 111. Qf5# {[%emt 0:00:00] What a bad dream for Black.   Weighted Error Value: White=0.21 (precise) /Black=0.34} 1-0

[Event "41st BAN National Women Chess-ch 2022"]
[Site "Dhaka"]
[Date "2022.11.25"]
[Round "8.1"]
[White "Khan, Nazrana"]
[Black "Ahmed, Walijah"]
[Result "1/2-1/2"]
[ECO "A95"]
[WhiteElo "1908"]
[BlackElo "1977"]
[Annotator "TA"]
[PlyCount "76"]
[EventDate "2022.11.17"]
[EventCountry "BAN"]
[SourceTitle "playchess.com"]
[Source "ChessBase"]
[SourceQuality "1"]
[TimeControl "40/5400+30:1800+30"]

{[%evp 15,76,22,14,18,29,-12,-14,-23,-18,-10,-12,-20,-8,-30,-26,-27,-27,-29,-26,-22,-10,-18,-18,-22,0,-35,-35,-36,-25,-32,-8,-15,0,0,7,0,7,0,0,0,17,0,0,0,15,0,0,0,0,0,0,0,2,0,0,0,0,0,0,0,0,0,0]} 1. d4 {[%emt 0:00:02]} e6 {[%emt 0:00:07]} 2. c4 {[%emt 0:00:19]} f5 {[%emt 0:00:19]} 3. g3 {[%emt 0:00:24]} Nf6 {[%emt 0:00:25]} 4. Bg2 {[%emt 0:00:27]} Be7 {[%emt 0:02:35]} 5. Nf3 {[%emt 0:00:30]} O-O {[%emt 0:00:41]} 6. O-O {[%emt 0:00:34]} c6 {[%emt 0:00:53]} 7. Nc3 {[%emt 0:02:05]} d5 {[%emt 0:00:22]} 8. Ne5 {[%emt 0:04:24]} Nbd7 {[%emt 0:01:02]} 9. cxd5 {[%emt 0:04:56] A95: Classical Dutch: Classical Stonewall: 7 Nc3 c6.} cxd5 {[%emt 0:07:33]} 10. Nxd7 {[%emt 0:06:40]} Bxd7 {[%emt 0:02:45] [#]} 11. Qb3 $146 {[%emt 0:10:45]} ({Predecessor:} 11. Bf4 b5 12. a4 b4 13. Na2 Qb6 14. Nc1 Rac8 15. Nd3 Qxd4 16. Be3 Qc4 17. Bxa7 Bd6 {1-0 (53) Haemmerlein,T (2195)-Waldmann,H (2329) Berlin 2006}) 11... Qb6 {[%emt 0:07:08]} 12. Qxb6 {[%emt 0:06:02]} axb6 {[%emt 0:00:17]} 13. Bd2 {[%emt 0:02:38]} Rfc8 {[%emt 0:07:55]} 14. Rfc1 {[%emt 0:04:17]} b5 {[%emt 0:02:09]} 15. a3 {[%emt 0:02:50]} b4 {[%emt 0:03:11]} 16. axb4 {[%emt 0:01:03]} Bxb4 {[%emt 0:00:21]} 17. e3 {[%emt 0:01:41]} Bd6 {[%emt 0:05:16]} 18. Bf1 {[%emt 0:00:57]} Kf7 {[%emt 0:16:06][%cal Bg8f7,Bf7e7,Be7d7][%mdl 32]} 19. f3 {[%emt 0:06:50]} Bc6 {[%emt 0:05:17]} 20. f4 {[%emt 0:05:06]} (20. Na4 $5 {[%cal Ra4b6]}) 20... Ke7 {[%emt 0:05:30]} 21. Bd3 {[%emt 0:01:22]} Kd7 {[%emt 0:03:09]} 22. h3 {[%emt 0:00:34]} Bb4 {[%emt 0:10:42]} 23. Kf2 {[%emt 0:01:19] The position is equal.} Bxc3 {[%emt 0:01:13]} 24. Bxc3 {[%emt 0:05:28]} Ne4+ {[%emt 0:00:28]} 25. Bxe4 {[%emt 0:00:48]} fxe4 {[%emt 0:00:31]} 26. g4 {[%emt 0:02:03]} Bb5 {[%emt 0:02:08]} 27. Kg3 {[%emt 0:01:27]} Rf8 {[%emt 0:01:53]} 28. Ba5 {[%emt 0:02:51] Black must now prevent Rc7+.} Rfc8 {[%emt 0:01:16] [#] Inhibits Rc7+. aiming for ...Rxc1.} 29. Bc3 {[%emt 0:01:58]} Rf8 {[%emt 0:04:29]} 30. g5 {[%emt 0:02:28]} g6 {[%emt 0:01:23]} 31. Ba5 {[%emt 0:02:40]} Rfc8 {[%emt 0:00:17] Prevents Rc7+. Hoping for ...Rxc1.} 32. Bc3 {[%emt 0:00:35]} Ra6 {[%emt 0:01:31]} 33. Rxa6 {[%emt 0:02:43]} bxa6 $11 {[%emt 0:00:33] KRB-KRB} 34. Ra1 {[%emt 0:00:36]} Rc4 {[%emt 0:00:36]} 35. Kf2 {[%emt 0:00:40]} Kc6 {[%emt 0:00:34]} 36. Ke1 {[%emt 0:00:32]} Kb7 {[%emt 0:01:28]} 37. Kd2 {[%emt 0:00:52]} Ra4 {[%emt 0:00:40]} 38. Rxa4 {[%emt 0:03:36]} Bxa4 {[%emt 0:00:06] Weighted Error Value: White=0.06 (flawless) /Black=0.06 (flawless)} 1/2-1/2

[Event "41st BAN National Women Chess-ch 2022"]
[Site "Dhaka"]
[Date "2022.11.25"]
[Round "8.2"]
[White "Kazi Zarin, Tasnim"]
[Black "Hamid, Rani"]
[Result "1/2-1/2"]
[ECO "B42"]
[WhiteElo "1860"]
[BlackElo "1760"]
[Annotator "NA RC COMBH"]
[PlyCount "119"]
[EventDate "2022.11.17"]
[EventCountry "BAN"]
[SourceTitle "playchess.com"]
[Source "ChessBase"]
[SourceQuality "1"]
[TimeControl "40/5400+30:1800+30"]

{[%evp 9,119,43,54,45,48,47,50,52,68,48,53,40,53,49,43,18,29,-71,-29,-26,-48,-39,30,0,-2,-14,-6,-22,334,111,446,14,26,13,9,-16,-7,-5,0,-171,0,0,0,0,0,0,0,0,0,0,0,0,0,0,0,0,0,0,0,0,0,0,0,0,0,0,0,0,0,0,8,0,8,8,13,0,0,-8,-8,0,-8,-82,-95,-177,0,0,0,0,0,0,0,0,0,0,0,0,0,-596,-1304,-2660,-2348,-596,-1854,-1510,-1148,-5065,-4618,-2814,-1610,-5072,0,-2074]} 1. e4 {[%emt 0:01:22]} c5 {[%emt 0:03:27]} 2. Nf3 {[%emt 0:00:08]} e6 {[%emt 0:00:09]} 3. d4 {[%emt 0:00:09]} cxd4 {[%emt 0:00:02]} 4. Nxd4 {[%emt 0:00:06]} a6 {[%emt 0:00:03]} 5. Bd3 {[%emt 0:00:08]} Nf6 {[%emt 0:00:10]} 6. O-O {[%emt 0:00:07]} d6 {[%emt 0:00:30]} 7. c4 {[%emt 0:00:16]} Be7 {[%emt 0:00:10]} 8. Nc3 {[%emt 0:00:13]} Qc7 {[%emt 0:00:38]} 9. Qe2 {[%emt 0:00:28]} Nc6 {[%emt 0:00:59]} 10. Nxc6 {[%emt 0:00:08]} bxc6 {[%emt 0:00:15]} 11. f4 {[%emt 0:00:18]} e5 {[%emt 0:00:31]} 12. c5 {[%emt 0:05:46]} dxc5 {[%emt 0:04:38]} 13. fxe5 {[%emt 0:00:59]} (13. f5 $11) 13... Qxe5 {[%emt 0:01:08]} 14. Bf4 {[%emt 0:07:18]} Qd4+ {[%emt 0:04:23]} 15. Be3 {[%emt 0:00:26] [#]} Qd8 {[%emt 0:00:53]} (15... Bg4 $142 $1 16. Qd2 (16. Bxd4 Bxe2 17. Nxe2 cxd4 $17) 16... Qd6) 16. e5 {[%emt 0:07:26]} (16. Bc4 $14) 16... Nd5 $1 {[%emt 0:02:36]} (16... Ng4 $2 17. Bc4 O-O 18. Rad1 $18) 17. Bc4 {[%emt 0:05:04]} O-O {[%emt 0:01:10]} 18. Rad1 {[%emt 0:02:17]} Nxc3 $2 {[%emt 0:01:36]} (18... Be6 $11 {and Black has nothing to worry.}) 19. bxc3 $2 {[%emt 0:01:30]} (19. Bxf7+ $18 {and the rest is easy.} Rxf7 20. Rxd8+ Bxd8 21. bxc3 Rxf1+ 22. Qxf1) 19... Qc7 $2 {[%emt 0:01:30] [#]} (19... Qe8 $16 {is tougher.}) 20. Bf4 $2 {[%emt 0:07:36]} ({White has to play} 20. Rxf7 $1 $18 {[%mdl 512]} Rxf7 21. Rf1) 20... Be6 {[%emt 0:00:39]} 21. Bxe6 {[%emt 0:00:19]} fxe6 {[%emt 0:00:02]} 22. Qg4 {[%emt 0:00:06]} (22. Qc4 $5 {[%cal Rc4e6]} Qc8 23. h3 $11) 22... Rf5 {[%emt 0:00:17]} 23. Bh6 {[%emt 0:06:20]} Rxf1+ {[%emt 0:06:49]} 24. Rxf1 {[%emt 0:00:10]} Qxe5 {[%emt 0:00:16]} 25. Bxg7 $1 {[%emt 0:04:13]} Qxg7 {[%emt 0:00:07]} 26. Qxe6+ {[%emt 0:00:03]} Kh8 {[%emt 0:00:07]} 27. Rf7 {[%emt 0:00:03]} Qxc3 {[%emt 0:00:25]} 28. Qxe7 {[%emt 0:01:10]} Qa1+ {[%emt 0:02:54]} 29. Rf1 {[%emt 0:00:30]} Qd4+ {[%emt 0:00:25]} 30. Kh1 {[%emt 0:02:23]} Rg8 {[%emt 0:00:20]} 31. Qf6+ {[%emt 0:13:30]} Qxf6 {[%emt 1:08:51]} 32. Rxf6 {[%emt 0:35:58]} Rb8 {[%emt 0:00:00]} 33. h3 {[%emt 0:00:00]} Rb6 {[%emt 0:00:00]} 34. Rf5 {[%emt 0:00:00]} Rb5 {[%emt 0:00:00]} 35. Rf6 {[%emt 0:00:00]} Ra5 {[%emt 0:00:00]} 36. Kh2 {[%emt 0:00:00]} Kg7 {[%emt 0:00:00]} 37. Rxc6 {[%emt 0:00:00]} Kf7 {[%emt 0:00:00]} 38. Kg3 {[%emt 0:00:00]} Ke7 {[%emt 0:00:00]} 39. Kf3 {[%emt 0:00:00]} Kd7 {[%emt 0:00:00]} 40. Rh6 {[%emt 0:00:00]} Rxa2 {[%emt 0:00:00]} 41. g4 {[%emt 0:13:39]} a5 $11 {[%emt 0:00:00]} 42. Ke4 {[%emt 0:02:30]} Rd2 {[%emt 0:00:00]} 43. Ra6 {[%emt 0:01:20]} Rd4+ {[%emt 0:00:00]} 44. Ke5 {[%emt 0:00:24]} a4 {[%emt 0:00:00]} 45. Ra7+ {[%emt 0:05:01]} (45. Rh6 $11 {keeps the balance.}) 45... Kc6 {[%emt 0:00:00]} 46. Rxh7 {[%emt 0:00:05]} Rd1 {[%emt 0:00:00]} ({Much weaker is} 46... Rd5+ 47. Ke4 $15) 47. Ra7 {[%emt 0:02:55]} Re1+ {[%emt 0:00:00]} 48. Kf5 {[%emt 0:01:41]} Kb5 {[%emt 0:00:00]} 49. g5 {[%emt 0:00:21]} c4 {[%emt 0:00:00]} 50. g6 {[%emt 0:01:14]} c3 {[%emt 0:00:00]} 51. g7 {[%emt 0:01:31]} ({Of course not} 51. Rc7 Rf1+ 52. Ke5 Rg1 $15) 51... Rg1 {[%emt 0:00:00]} 52. Kf6 {[%emt 0:00:10]} Kb4 {[%emt 0:00:00]} (52... c2 $5 53. Rc7 $8 Rf1+ 54. Ke7 Rg1 $11) 53. h4 $2 {[%emt 0:01:30] [#]} (53. Rb7+ $11 {and White stays safe.} Ka3 54. Rc7) 53... c2 $1 {[%emt 0:00:00]} 54. Rc7 {[%emt 0:00:07] [#]} Kb3 $1 {[%emt 0:00:00]} 55. Rb7+ {[%emt 0:03:31]} Ka2 {[%emt 0:00:00]} 56. Rc7 {[%emt 0:00:08]} Kb2 {[%emt 0:00:00]} ({Weaker is} 56... c1=B {[#]} 57. Rxc1 $1 {[%mdl 512]} Rxc1 58. g8=Q+ $18 (58. g8=R Rf1+ 59. Kg6 Rh1 $11)) 57. Rb7+ {[%emt 0:00:03]} Kc3 {[%emt 0:00:00]} 58. Rc7+ {[%emt 0:00:28] [#]} Kd2 $1 {[%emt 0:00:00]} 59. Rd7+ {[%emt 0:00:02]} Kc3 $2 {[%emt 0:00:00]} ({Black should try} 59... Kc1 $19 60. Kf7 a3) 60. Rc7+ {[%emt 0:00:05]} 1/2-1/2